bitfinex/quotes_BTCUSD_20250320
["timestamp","ask_amount","ask_price","bid_price","bid_amount"]
[1742484392961,0.08965296,85899.0,85881.0,0.00232822]
[1742484393146,0.08965296,85899.0,85898.0,0.02297363]
[1742484393346,0.08965296,85899.0,85898.0,0.16565363]
[1742484394501,0.09065296,85899.0,85898.0,0.02297363]
[1742484394730,0.001,85896.0,85895.0,0.5544]
[1742484394936,0.54548,85896.0,85895.0,0.5544]
[1742484395346,1.26377441,85896.0,85895.0,0.5544]
[1742484395548,1.27831526,85896.0,85895.0,0.5544]
[1742484395756,0.3,85890.0,85885.0,0.02292463]
[1742484396191,0.001,85876.0,85871.0,0.55432]
[1742484396400,0.07370041,85875.0,85871.0,0.55432]
[1742484396604,0.001,85872.0,85871.0,0.55432]
[1742484397130,0.07470041,85875.0,85871.0,0.57720682]
[1742484397402,0.00312776,85874.0,85871.0,0.57720682]
[1742484397615,0.00312776,85874.0,85872.0,0.11957503]
[1742484398133,0.07370041,85875.0,85872.0,0.11957503]
[1742484398336,0.08228733,85875.0,85872.0,0.11957503]
[1742484399384,0.08228733,85875.0,85872.0,0.12457503]
[1742484400214,0.08228733,85875.0,85873.0,1.5]
[1742484400397,0.08228733,85875.0,85873.0,1.61957503]
[1742484400898,0.001,85873.0,85872.0,0.011]
[1742484401554,0.07370041,85873.0,85872.0,0.011]
[1742484401780,0.07370041,85873.0,85872.0,0.006]
[1742484401955,0.07370041,85873.0,85871.0,0.57720682]
[1742484402823,0.07370041,85873.0,85872.0,0.005]
[1742484403036,0.07370041,85873.0,85871.0,0.58320682]
[1742484403373,0.07370041,85873.0,85871.0,0.58720682]
[1742484403735,0.07370041,85873.0,85871.0,0.58320682]
[1742484403940,0.07370041,85873.0,85871.0,0.57720682]
[1742484404145,0.07470041,85872.0,85871.0,0.57720682]
[1742484404347,0.37470041,85872.0,85871.0,0.57720682]
[1742484405045,0.37470041,85872.0,85871.0,0.55432]
[1742484405247,0.61924941,85872.0,85871.0,0.55432]
[1742484405435,0.001,85865.0,85864.0,0.14264]
[1742484405667,0.60762341,85865.0,85864.0,0.14276469]
[1742484405856,0.37470041,85865.0,85864.0,0.00012469]
[1742484407093,0.37470041,85865.0,85864.0,0.00512469]
[1742484407299,0.37470041,85865.0,85864.0,0.01112469]
[1742484408357,0.37370041,85865.0,85864.0,0.01112469]
[1742484408571,0.37370041,85865.0,85864.0,0.12569972]
[1742484408980,0.37370041,85865.0,85864.0,0.12969972]
[1742484409128,0.37370041,85865.0,85864.0,1.62969972]
[1742484410473,0.07370041,85865.0,85864.0,1.62969972]
[1742484410676,0.07370041,85865.0,85864.0,1.665963]
[1742484411199,0.3,85873.0,85864.0,1.665963]
[1742484411402,0.3,85873.0,85865.0,0.15583831]
[1742484411612,0.3,85873.0,85866.0,0.03626328]
[1742484411818,0.0001695,85875.0,85867.0,0.11957503]
[1742484412142,0.001,85874.0,85868.0,0.03626328]
[1742484412480,0.0001695,85875.0,85869.0,0.11957503]
[1742484412679,0.0001695,85875.0,85870.0,0.03626328]
[1742484412931,0.0001695,85875.0,85871.0,0.26217503]
[1742484413124,0.0001695,85875.0,85872.0,0.03626328]
[1742484413278,0.0001695,85875.0,85873.0,0.11957503]
[1742484415363,0.001,85866.0,85865.0,0.10405852]
[1742484415563,0.001,85866.0,85865.0,0.14037744]
[1742484415752,0.001,85866.0,85865.0,0.10405852]
[1742484416557,0.001,85866.0,85865.0,0.11005852]
[1742484416961,0.001,85866.0,85865.0,0.11505852]
[1742484417173,0.07370041,85866.0,85865.0,0.11505852]
[1742484417380,0.07370041,85866.0,85865.0,0.25779956]
[1742484417536,0.07370041,85866.0,85865.0,0.29411711]
[1742484418354,0.07370041,85866.0,85865.0,0.25179956]
[1742484418547,0.07370041,85866.0,85865.0,0.28811515]
[1742484418754,0.25567308,85875.0,85866.0,0.1278]
[1742484418755,0.0001695,85875.0,85866.0,0.1278]
[1742484418970,0.0823,85903.0,85866.0,0.1278]
[1742484418971,0.001,85903.0,85882.0,0.0817]
[1742484419225,0.00284568,85901.0,85884.0,0.11957503]
[1742484419423,0.00284568,85901.0,85883.0,0.18120367]
[1742484419424,0.00284568,85901.0,85900.0,1.5]
[1742484419595,0.0001695,85902.0,85900.0,2.35281062]
[1742484419801,0.0001695,85902.0,85901.0,0.1582184]
[1742484420406,0.02030913,85902.0,85901.0,0.3007784]
[1742484420609,0.07370041,85917.0,85901.0,0.53127462]
[1742484420851,0.07370041,85917.0,85903.0,0.11957503]
[1742484421061,0.00058526,85904.0,85903.0,0.15821825]
[1742484421415,0.02054339,85904.0,85903.0,0.23781825]
[1742484421626,0.0001697,85925.0,85911.0,0.232798]
[1742484421830,0.00029432,85913.0,85912.0,0.15821785]
[1742484422796,0.02113749,85913.0,85912.0,0.15821785]
[1742484423002,0.0001697,85925.0,85914.0,0.23279]
[1742484423215,0.0001697,85925.0,85917.0,0.13521403]
[1742484423412,0.0001697,85925.0,85917.0,0.1988564]
[1742484423815,0.0001696,85931.0,85923.0,0.232766]
[1742484424019,0.0001696,85931.0,85928.0,0.11957503]
[1742484424317,0.0001696,85931.0,85928.0,0.85501748]
[1742484424522,0.0001696,85931.0,85928.0,0.81637503]
[1742484424721,0.0001696,85931.0,85928.0,1.17747257]
[1742484424922,0.0001696,85931.0,85928.0,1.16583557]
[1742484425054,0.0001696,85931.0,85928.0,0.93308257]
[1742484425864,0.0001696,85931.0,85928.0,2.44471957]
[1742484426292,0.002,85949.0,85930.0,0.232745]
[1742484426462,0.00112457,85939.0,85938.0,0.11957503]
[1742484426889,0.02189612,85939.0,85938.0,1.61957503]
[1742484427112,0.00112457,85939.0,85938.0,1.61957503]
[1742484428048,0.02115647,85939.0,85938.0,0.11957503]
[1742484428521,0.00112457,85939.0,85938.0,0.02283819]
[1742484428723,0.00112457,85939.0,85938.0,0.16531819]
[1742484429081,0.00410701,85939.0,85938.0,0.16531819]
[1742484429318,0.02258844,85939.0,85938.0,0.16531819]
[1742484429489,0.07880742,85939.0,85938.0,0.17131819]
[1742484430094,0.07880742,85939.0,85938.0,0.14130442]
[1742484430293,0.07880742,85939.0,85938.0,0.012]
[1742484430493,0.07880742,85939.0,85938.0,0.006]
[1742484430702,0.001,85932.0,85931.0,0.103898]
[1742484430916,0.001,85932.0,85931.0,0.800338]
[1742484431317,0.07470041,85932.0,85931.0,0.800338]
[1742484431538,0.07470041,85932.0,85931.0,0.554]
[1742484431915,0.07768285,85932.0,85931.0,0.554]
[1742484432326,0.0865439,85932.0,85931.0,0.57775676]
[1742484432734,0.07668285,85932.0,85931.0,0.57775676]
[1742484432949,0.07668285,85932.0,85931.0,0.69733179]
[1742484433166,0.07668285,85932.0,85931.0,0.70333179]
[1742484433346,0.07668285,85932.0,85931.0,0.70733179]
[1742484433678,0.07668285,85932.0,85931.0,0.84377179]
[1742484433880,0.07668285,85932.0,85931.0,0.84977179]
[1742484433881,0.07370041,85932.0,85931.0,0.84977179]
[1742484434169,0.07470041,85932.0,85931.0,0.72619676]
[1742484435191,0.07470041,85932.0,85931.0,0.72019676]
[1742484435399,0.07470041,85932.0,85931.0,0.72619676]
[1742484435735,0.07470041,85932.0,85931.0,0.73219676]
[1742484435942,0.07470041,85932.0,85931.0,2.23219676]
[1742484436137,0.07470041,85932.0,85931.0,2.23019676]
[1742484436537,0.07470041,85932.0,85931.0,2.23619676]
[1742484437475,0.07370041,85932.0,85931.0,2.35577179]
[1742484438090,0.07470041,85932.0,85931.0,2.35577179]
[1742484438301,0.07470041,85932.0,85931.0,2.23619676]
[1742484442722,0.60744241,85932.0,85931.0,2.0703386]
[1742484442929,0.60744241,85932.0,85931.0,1.5163386]
[1742484442930,0.63362026,85932.0,85931.0,1.5163386]
[1742484443138,3.12221604,85932.0,85931.0,0.0163386]
[1742484443254,1.41068604,85932.0,85931.0,0.0163386]
[1742484443627,0.62221416,85932.0,85931.0,0.0163386]
[1742484443831,0.62221416,85932.0,85931.0,0.0103386]
[1742484444007,0.62221416,85932.0,85931.0,0.0163386]
[1742484444453,0.37783516,85932.0,85931.0,0.0163386]
[1742484444621,0.37783516,85932.0,85931.0,0.0103386]
[1742484445007,0.37783516,85932.0,85931.0,0.0003386]
[1742484446172,0.37783516,85932.0,85931.0,1.5083386]
[1742484446671,0.37783516,85932.0,85931.0,1.5023386]
[1742484447216,0.37470041,85932.0,85931.0,1.5023386]
[1742484447412,0.37470041,85932.0,85931.0,1.5083386]
[1742484447618,0.37782326,85932.0,85931.0,1.5083386]
[1742484450264,0.37782326,85932.0,85931.0,0.0083386]
[1742484450265,0.62220226,85932.0,85931.0,0.0083386]
[1742484450470,1.72419011,85932.0,85931.0,0.0083386]
[1742484452036,1.04945811,85932.0,85931.0,0.0083386]
[1742484452463,1.04945811,85932.0,85931.0,0.0023386]
[1742484452649,1.04945811,85932.0,85931.0,0.0063386]
[1742484453202,1.04945811,85932.0,85931.0,0.0003386]
[1742484453407,1.04945811,85932.0,85931.0,0.0053386]
[1742484453635,0.63674311,85932.0,85931.0,0.0053386]
[1742484453798,0.80702911,85932.0,85931.0,0.0053386]
[1742484454255,0.62220226,85932.0,85931.0,0.0053386]
[1742484454437,0.72443326,85932.0,85931.0,0.0053386]
[1742484454854,0.62220226,85932.0,85931.0,0.0053386]
[1742484455084,0.07782326,85932.0,85931.0,0.0053386]
[1742484455403,0.09607488,85932.0,85931.0,0.0053386]
[1742484456097,0.09607488,85932.0,85931.0,0.0003386]
[1742484456477,0.09607488,85932.0,85931.0,0.0063386]
[1742484456875,0.09607488,85932.0,85931.0,0.0003386]
[1742484457056,0.74827388,85932.0,85931.0,0.0003386]
[1742484457256,1.00368788,85932.0,85931.0,0.0063386]
[1742484457627,1.01822873,85932.0,85931.0,0.0063386]
[1742484457756,0.98928373,85932.0,85931.0,0.0063386]
[1742484457963,1.07118373,85932.0,85931.0,0.0063386]
[1742484459017,1.07118373,85932.0,85931.0,0.0083386]
[1742484461523,1.05293211,85932.0,85931.0,0.0083386]
[1742484462282,1.05293211,85932.0,85931.0,0.0003386]
[1742484462710,1.05293211,85932.0,85931.0,0.0053386]
[1742484463525,0.301,85913.0,85905.0,0.69628]
[1742484463724,0.72817,85913.0,85905.0,0.69628]
[1742484463903,0.49844233,85913.0,85905.0,0.69628]
[1742484464108,0.73123533,85913.0,85905.0,0.55396]
[1742484464300,0.53685833,85913.0,85905.0,0.55396]
[1742484464502,0.64975033,85913.0,85905.0,0.55396]
[1742484464710,0.41695733,85913.0,85905.0,0.55396]
[1742484464911,0.30406533,85913.0,85905.0,0.55396]
[1742484465508,0.30306533,85913.0,85912.0,0.03665965]
[1742484465707,0.30306533,85913.0,85912.0,0.03965965]
[1742484465929,0.30306533,85913.0,85912.0,1.54565965]
[1742484466188,0.3,85913.0,85912.0,1.65923468]
[1742484466619,0.3,85913.0,85912.0,1.66223468]
[1742484466825,0.3,85913.0,85912.0,1.66623468]
[1742484467283,0.3,85913.0,85912.0,1.65623468]
[1742484468495,0.3,85913.0,85912.0,1.66223468]
[1742484469054,0.301,85913.0,85912.0,0.04665965]
[1742484469474,0.30405674,85913.0,85912.0,0.04665965]
[1742484469725,0.30305674,85913.0,85912.0,0.04665965]
[1742484469927,0.30305674,85913.0,85912.0,0.03665965]
[1742484470139,0.3,85913.0,85912.0,0.03665965]
[1742484470328,0.3,85913.0,85912.0,0.16523468]
[1742484470528,0.3,85913.0,85912.0,0.16223468]
[1742484470736,0.07370041,85925.0,85913.0,0.0493]
[1742484470935,0.07370041,85925.0,85914.0,0.15589588]
[1742484471137,0.00305736,85924.0,85915.0,0.17864085]
[1742484471311,0.00305736,85924.0,85916.0,0.15589588]
[1742484471670,0.00305736,85924.0,85917.0,0.03632085]
[1742484471981,0.00305736,85924.0,85918.0,0.11957503]
[1742484472179,0.00305736,85924.0,85919.0,0.03632085]
[1742484472398,0.00305736,85924.0,85920.0,0.11957503]
[1742484472558,0.001,85920.0,85915.0,0.14232]
[1742484472906,0.001,85920.0,85916.0,0.04234063]
[1742484473189,0.001,85920.0,85917.0,0.03634063]
[1742484473390,0.001,85920.0,85916.0,0.03634063]
[1742484473572,0.001,85920.0,85917.0,0.03634063]
[1742484473967,0.001,85920.0,85918.0,0.03634063]
[1742484474168,0.001,85920.0,85916.0,0.03634063]
[1742484474378,0.001,85920.0,85917.0,0.03634063]
[1742484474751,0.07470041,85925.0,85918.0,0.11957503]
[1742484474965,0.07370041,85925.0,85919.0,0.03634063]
[1742484475185,0.3,85929.0,85920.0,0.67365503]
[1742484475351,0.3,85929.0,85921.0,0.03634063]
[1742484475548,0.3,85929.0,85922.0,0.11957503]
[1742484475751,0.3,85929.0,85923.0,0.03634063]
[1742484475954,0.3,85929.0,85924.0,1.61957503]
[1742484476164,0.3,85929.0,85925.0,0.03634063]
[1742484476432,0.3,85929.0,85926.0,0.11957503]
[1742484476609,0.3,85929.0,85927.0,0.14228]
[1742484476822,0.00309163,85928.0,85927.0,0.14228]
[1742484476976,0.00309163,85928.0,85927.0,0.29820053]
[1742484477225,0.00309163,85928.0,85927.0,1.79820053]
[1742484477387,0.001,85934.0,85927.0,1.79820053]
[1742484477588,0.00309601,85933.0,85928.0,0.15592053]
[1742484477799,0.00309601,85933.0,85929.0,0.0363455]
[1742484477998,0.00309601,85933.0,85930.0,0.11957503]
[1742484478232,0.00309601,85933.0,85931.0,0.0363455]
[1742484478418,0.00309601,85933.0,85931.0,0.15592053]
[1742484478624,0.00309601,85933.0,85931.0,0.11957503]
[1742484479719,0.00309601,85933.0,85931.0,0.12557503]
[1742484479905,0.00326531,85933.0,85931.0,0.12557503]
[1742484480921,0.00326531,85933.0,85931.0,0.13057503]
[1742484481941,0.00326531,85933.0,85932.0,0.03633336]
[1742484482149,0.00326531,85933.0,85932.0,0.30047568]
[1742484482408,0.0001693,85933.0,85932.0,0.29814839]
[1742484483395,0.0001693,85933.0,85932.0,0.30414839]
[1742484484376,0.0001693,85933.0,85932.0,0.30914839]
[1742484484830,0.0001693,85933.0,85932.0,0.30414839]
[1742484485146,0.0001693,85933.0,85932.0,0.15424]
[1742484485317,0.0001693,85933.0,85932.0,0.14824]
[1742484485699,0.0001693,85933.0,85932.0,0.14224]
[1742484485929,0.0001693,85933.0,85932.0,0.14824]
[1742484486514,0.0001693,85933.0,85932.0,0.14224]
[1742484486720,0.0001693,85933.0,85932.0,0.011]
[1742484487239,0.0001693,85933.0,85932.0,0.13057503]
[1742484487571,0.0001693,85933.0,85932.0,0.12557503]
[1742484487939,0.0001693,85933.0,85932.0,0.13057503]
[1742484488888,0.0001693,85933.0,85932.0,0.12457503]
[1742484489091,0.0001693,85933.0,85932.0,0.27277503]
[1742484490051,0.0011693,85933.0,85932.0,0.1532]
[1742484490476,0.00431591,85933.0,85932.0,0.1472]
[1742484490692,0.0011693,85933.0,85916.0,0.0752]
[1742484490892,0.001,85922.0,85921.0,1.67848282]
[1742484491053,0.001,85922.0,85921.0,0.1422]
[1742484491258,0.53688984,85922.0,85921.0,0.1422]
[1742484491458,0.30412084,85922.0,85921.0,0.1422]
[1742484492132,0.30412084,85922.0,85912.0,0.0003388]
[1742484492133,0.533771,85921.0,85912.0,0.0003388]
[1742484492978,0.001,85900.0,85899.0,0.69616]
[1742484493473,0.233828,85900.0,85899.0,0.55396]
[1742484493674,0.001,85889.0,85888.0,0.00041556]
[1742484494401,0.001,85889.0,85888.0,0.02329761]
[1742484494801,0.001,85889.0,85888.0,0.02929761]
[1742484495222,0.02710159,85889.0,85888.0,0.02929761]
[1742484495469,0.301,85889.0,85888.0,0.02929761]
[1742484495673,0.3039808,85889.0,85888.0,0.03529761]
[1742484496271,0.301,85889.0,85888.0,0.02929761]
[1742484496470,0.30397424,85889.0,85888.0,0.02929761]
[1742484496671,0.30397424,85889.0,85888.0,0.03529761]
[1742484497037,0.30397424,85889.0,85888.0,0.02929761]
[1742484497456,1.52633965,85889.0,85888.0,0.01141556]
[1742484497720,1.15327765,85889.0,85888.0,0.01141556]
[1742484498039,0.63547785,85876.0,85875.0,0.01253025]
[1742484498314,0.001,85846.0,85837.0,0.0003392]
[1742484498615,0.001,85846.0,85845.0,0.00046342]
[1742484498775,0.00394358,85846.0,85845.0,0.00046342]
[1742484498977,0.001,85846.0,85845.0,0.00046342]
[1742484499559,0.00379813,85846.0,85845.0,0.16599713]
[1742484499904,0.001,85846.0,85845.0,0.16599713]
[1742484501586,0.00973951,85846.0,85845.0,0.16599713]
[1742484501786,0.002,85846.0,85845.0,0.17099713]
[1742484502329,0.003,85846.0,85845.0,0.00546342]
[1742484502639,0.302,85846.0,85845.0,0.00046342]
[1742484502841,0.32206689,85846.0,85845.0,0.00546342]
[1742484503045,1.59402454,85846.0,85845.0,0.00546342]
[1742484503293,0.60472978,85846.0,85845.0,0.00546342]
[1742484503445,0.31335478,85846.0,85845.0,0.00546342]
[1742484503653,0.22725178,85846.0,85845.0,0.00546342]
[1742484503831,0.01335478,85846.0,85845.0,0.00546342]
[1742484504237,0.01335478,85846.0,85845.0,0.00046342]
[1742484504485,0.01335478,85846.0,85845.0,0.00146342]
[1742484505285,0.01335478,85846.0,85845.0,0.00046342]
[1742484505843,0.01335478,85846.0,85845.0,0.00246342]
[1742484505844,0.01235478,85846.0,85845.0,0.00246342]
[1742484506029,0.01335478,85846.0,85845.0,0.00646342]
[1742484506439,0.01135478,85846.0,85845.0,0.00246342]
[1742484506849,0.01335478,85846.0,85845.0,0.00646342]
[1742484507053,0.01335478,85846.0,85845.0,1.50646342]
[1742484507252,0.01135478,85846.0,85845.0,1.50246342]
[1742484507456,0.001,85847.0,85845.0,1.62003845]
[1742484507675,0.001,85850.0,85846.0,0.11957503]
[1742484507921,0.001,85857.0,85846.0,0.11957503]
[1742484508134,0.01826892,85858.0,85846.0,0.11957503]
[1742484508135,0.00275556,85849.0,85847.0,0.00232938]
[1742484508267,0.00275556,85849.0,85848.0,0.26181503]
[1742484508692,0.00275556,85849.0,85848.0,0.26081503]
[1742484508882,0.001,85855.0,85848.0,0.26081503]
[1742484509082,0.001,85849.0,85848.0,0.14124]
[1742484509487,0.002,85849.0,85848.0,0.15024]
[1742484510272,0.002,85849.0,85848.0,0.009]
[1742484510479,0.013648,85849.0,85848.0,0.009]
[1742484510879,1.099171,85849.0,85848.0,0.009]
[1742484511420,1.099171,85849.0,85848.0,0.004]
[1742484511678,1.099171,85849.0,85848.0,0.008]
[1742484511821,1.098171,85849.0,85848.0,0.004]
[1742484512022,0.012648,85846.0,85845.0,0.00046342]
[1742484512272,0.545623,85846.0,85845.0,0.00046342]
[1742484513832,0.546623,85846.0,85845.0,0.00546342]
[1742484514046,4.64246285,85846.0,85845.0,0.00546342]
[1742484514257,1.51890685,85846.0,85845.0,0.00546342]
[1742484514428,1.30210085,85846.0,85845.0,0.00546342]
[1742484514737,1.30210085,85846.0,85845.0,0.00946342]
[1742484515343,1.30110085,85846.0,85845.0,0.00046342]
[1742484515564,1.32037097,85846.0,85845.0,0.00346342]
[1742484515778,1.32037097,85846.0,85845.0,0.00646342]
[1742484515974,1.06416997,85846.0,85845.0,0.00046342]
[1742484516136,0.78030012,85846.0,85845.0,0.00046342]
[1742484516341,0.56489312,85846.0,85845.0,0.00346342]
[1742484516768,0.32027012,85846.0,85845.0,0.00346342]
[1742484517940,0.02027012,85846.0,85845.0,0.14570342]
[1742484518705,0.02027012,85846.0,85845.0,0.14370342]
[1742484518919,0.01927012,85846.0,85845.0,0.14370342]
[1742484519125,0.02027012,85846.0,85845.0,0.14470342]
[1742484519540,0.01927012,85846.0,85845.0,0.14470342]
[1742484519680,0.01927012,85846.0,85845.0,0.16800611]
[1742484519880,0.02027012,85846.0,85845.0,0.17000611]
[1742484520560,0.002,85846.0,85845.0,0.17000611]
[1742484521548,0.001,85846.0,85845.0,0.28958114]
[1742484521749,0.001,85846.0,85845.0,0.14534114]
[1742484521948,0.001,85855.0,85845.0,0.28558114]
[1742484522156,0.001,85851.0,85846.0,0.11957503]
[1742484522564,0.001,85846.0,85845.0,0.17500611]
[1742484522745,0.001,85846.0,85845.0,0.03276611]
[1742484522943,0.001,85846.0,85845.0,0.16896611]
[1742484523110,0.001,85846.0,85845.0,0.17196611]
[1742484523901,0.001,85846.0,85845.0,0.14866342]
[1742484524104,0.301,85846.0,85845.0,0.14866342]
[1742484524503,0.545623,85846.0,85845.0,0.00646342]
[1742484524998,0.545623,85846.0,85845.0,0.00546342]
[1742484525399,0.301,85838.0,85837.0,0.6970992]
[1742484525605,0.301,85838.0,85837.0,0.14266389]
[1742484526252,0.545646,85838.0,85837.0,0.14266389]
[1742484526880,0.533997,85838.0,85837.0,0.14266389]
[1742484527085,0.533997,85838.0,85837.0,0.14866389]
[1742484527293,0.545646,85838.0,85837.0,0.14866389]
[1742484527505,0.545646,85838.0,85837.0,0.00646389]
[1742484527708,0.794138,85838.0,85837.0,0.01046389]
[1742484527921,0.752303,85838.0,85837.0,0.01046389]
[1742484528475,0.752303,85838.0,85837.0,0.00046389]
[1742484528678,0.752303,85838.0,85837.0,0.00646389]
[1742484528895,0.301,85838.0,85837.0,0.01046389]
[1742484529123,0.301,85838.0,85837.0,0.00646389]
[1742484529347,0.301,85838.0,85837.0,0.00046389]
[1742484529542,0.301,85838.0,85837.0,0.00846389]
[1742484529931,0.545646,85838.0,85837.0,0.00846389]
[1742484531767,0.545646,85838.0,85837.0,0.04480549]
[1742484531938,0.545646,85838.0,85837.0,0.00846389]
[1742484533146,0.545646,85838.0,85837.0,0.04484246]
[1742484534333,0.545672,85829.0,85827.0,0.000339]
[1742484534539,0.545672,85829.0,85828.0,0.00046372]
[1742484535201,0.56872455,85829.0,85828.0,0.00046372]
[1742484535410,1.5640324,85829.0,85828.0,0.00046372]
[1742484535610,1.5640324,85829.0,85828.0,0.00346372]
[1742484536085,1.5640324,85829.0,85828.0,0.00046372]
[1742484536320,0.56872455,85829.0,85828.0,0.00346372]
[1742484536528,0.78057455,85829.0,85828.0,0.00846372]
[1742484536728,0.78057455,85829.0,85828.0,0.00546372]
[1742484536920,0.86781581,85829.0,85828.0,0.00046372]
[1742484537360,0.86781581,85829.0,85828.0,0.00446372]
[1742484537555,0.88608967,85829.0,85828.0,0.00446372]
[1742484539387,0.545692,85822.0,85821.0,0.00196001]
[1742484539538,1.480473,85822.0,85821.0,0.00196001]
[1742484539701,0.545692,85822.0,85821.0,0.00196001]
[1742484539902,1.558048,85822.0,85821.0,0.00196001]
[1742484540263,1.215108,85822.0,85821.0,0.00196001]
[1742484540724,1.216108,85822.0,85821.0,0.00696001]
[1742484541699,1.216108,85822.0,85821.0,0.00796001]
[1742484542668,0.873801,85822.0,85821.0,0.00796001]
[1742484542872,0.001,85796.0,85795.0,0.35661916]
[1742484543076,0.001,85796.0,85795.0,0.20512249]
[1742484543077,0.545766,85796.0,85795.0,0.20512249]
[1742484544097,1.201021,85796.0,85795.0,0.20512249]
[1742484544299,1.21556185,85796.0,85795.0,0.20512249]
[1742484544687,1.21656185,85796.0,85795.0,0.20512249]
[1742484545159,0.012658,85778.0,85757.0,0.0469]
[1742484545307,0.578425,85778.0,85768.0,0.02341455]
[1742484545520,0.538493,85778.0,85777.0,0.00029378]
[1742484545722,0.510213,85778.0,85777.0,0.00029378]
[1742484545923,0.468856,85778.0,85777.0,0.00029378]
[1742484546165,0.544834,85772.0,85768.0,0.02341455]
[1742484546340,0.544834,85772.0,85771.0,0.00108223]
[1742484546546,0.3,85772.0,85771.0,0.00108223]
[1742484547412,0.301,85772.0,85771.0,0.00108223]
[1742484547594,0.302,85772.0,85771.0,0.00108223]
[1742484548153,0.301,85772.0,85771.0,0.00108223]
[1742484548983,0.001,85772.0,85771.0,0.00508223]
[1742484549354,0.001,85774.0,85771.0,0.00108223]
[1742484549555,0.04054292,85778.0,85772.0,0.11857503]
[1742484549761,0.04054292,85778.0,85773.0,0.1422]
[1742484549762,0.02225986,85778.0,85773.0,0.1422]
[1742484549966,0.001,85775.0,85773.0,0.26177503]
[1742484550165,0.011657,85781.0,85771.0,0.00108223]
[1742484550166,0.001,85772.0,85771.0,0.00108223]
[1742484550363,0.535176,85772.0,85771.0,0.00408223]
[1742484550606,0.302,85772.0,85771.0,0.00408223]
[1742484550808,0.30447038,85772.0,85771.0,0.00108223]
[1742484551010,0.30347038,85772.0,85771.0,0.00108223]
[1742484551380,0.30347038,85772.0,85771.0,0.14328223]
[1742484552600,0.30347038,85772.0,85771.0,0.14345183]
[1742484552799,0.30347038,85772.0,85771.0,0.14745183]
[1742484553483,0.30447038,85772.0,85771.0,0.14745183]
[1742484554457,0.30347038,85772.0,85771.0,0.14745183]
[1742484554855,0.30347038,85772.0,85771.0,0.26702686]
[1742484555657,0.00347038,85772.0,85771.0,0.26702686]
[1742484556061,0.001,85772.0,85771.0,1.76702686]
[1742484561028,0.0226548,85782.0,85771.0,1.76702686]
[1742484561228,0.001,85794.0,85773.0,0.0769]
[1742484561476,0.001,85787.0,85774.0,0.12190623]
[1742484561694,0.00347427,85793.0,85774.0,0.12190623]
[1742484561860,0.001,85791.0,85775.0,0.0465]
[1742484562064,0.01828204,85795.0,85777.0,0.11957503]
[1742484562065,0.00247427,85792.0,85777.0,0.11957503]
[1742484562266,0.001,85794.0,85777.0,0.11957503]
[1742484562267,0.001,85794.0,85778.0,1.5]
[1742484562473,0.001,85791.0,85779.0,0.11957503]
[1742484563036,0.00249804,85790.0,85780.0,1.5]
[1742484563236,0.00249804,85790.0,85781.0,0.11957503]
[1742484563460,0.001,85791.0,85781.0,0.11957503]
[1742484563870,0.00249955,85790.0,85781.0,0.11957503]
[1742484564289,0.0003394,85787.0,85781.0,0.11957503]
[1742484565883,0.0003394,85787.0,85786.0,0.02330483]
[1742484565996,0.0003394,85787.0,85786.0,0.28499986]
[1742484566899,0.0013394,85787.0,85786.0,0.14287986]
[1742484567032,0.0013394,85787.0,85786.0,0.28499986]
[1742484567237,0.0013394,85787.0,85786.0,0.28699986]
[1742484567667,0.0023394,85787.0,85786.0,0.28899986]
[1742484568271,0.2354744,85787.0,85786.0,0.02730483]
[1742484568474,0.3023394,85787.0,85786.0,0.02730483]
[1742484569089,0.3023394,85787.0,85786.0,0.02330483]
[1742484569090,0.3013394,85787.0,85786.0,0.02330483]
[1742484569457,0.3023394,85787.0,85786.0,0.02530483]
[1742484569812,0.3023394,85787.0,85786.0,0.02730483]
[1742484569991,0.3013394,85787.0,85786.0,0.02330483]
[1742484570201,0.3023394,85787.0,85786.0,0.02530483]
[1742484570412,0.3023394,85787.0,85786.0,0.02730483]
[1742484570794,0.3023394,85787.0,85786.0,0.28899986]
[1742484573457,0.30382692,85787.0,85786.0,0.28899986]
[1742484573644,0.3013394,85787.0,85786.0,0.28899986]
[1742484573840,0.30382692,85787.0,85786.0,0.28899986]
[1742484574072,0.30382692,85787.0,85786.0,0.14687986]
[1742484574243,0.00382692,85787.0,85786.0,0.40770081]
[1742484574422,0.00382692,85787.0,85786.0,0.45690081]
[1742484574626,0.0013394,85787.0,85786.0,0.45690081]
[1742484575029,0.0003394,85787.0,85786.0,0.45490081]
[1742484575451,0.0013394,85787.0,85786.0,0.32530081]
[1742484575657,0.0013394,85787.0,85786.0,0.18322081]
[1742484575853,0.0013394,85787.0,85786.0,0.32530081]
[1742484576055,0.0013394,85787.0,85786.0,0.32330081]
[1742484576368,0.0013394,85787.0,85786.0,0.32530081]
[1742484576616,0.0003394,85787.0,85786.0,0.32130081]
[1742484577067,0.0013394,85787.0,85786.0,1.83130081]
[1742484578035,0.0003394,85787.0,85786.0,1.82630081]
[1742484578225,0.0003394,85787.0,85786.0,1.83230081]
[1742484578424,0.0003394,85787.0,85786.0,1.82730081]
[1742484578641,0.0003394,85787.0,85786.0,1.83330081]
[1742484581015,0.0003394,85787.0,85786.0,1.82730081]
[1742484581213,0.0003394,85787.0,85786.0,1.79095986]
[1742484581419,0.0013394,85787.0,85786.0,1.8322986]
[1742484582176,0.0013394,85787.0,85786.0,1.8262986]
[1742484582382,0.0013394,85787.0,85786.0,1.8312986]
[1742484584037,0.0013394,85787.0,85786.0,2.3861386]
[1742484586272,0.0013394,85787.0,85786.0,2.2440586]
[1742484586483,0.0013394,85787.0,85786.0,2.3860986]
[1742484586846,0.0013394,85787.0,85786.0,0.8860986]
[1742484587272,0.0013394,85787.0,85786.0,2.3860986]
[1742484588692,0.001,85819.0,85786.0,2.53126519]
[1742484588872,0.001,85820.0,85804.0,0.11957503]
[1742484589075,0.001,85820.0,85805.0,0.18066907]
[1742484589280,0.001,85820.0,85806.0,1.65591377]
[1742484589481,0.001,85820.0,85807.0,0.03866902]
[1742484589679,0.011649,85837.0,85807.0,0.03866902]
[1742484589680,0.001,85824.0,85810.0,0.0483]
[1742484589896,0.02134189,85822.0,85811.0,0.71308394]
[1742484590079,0.001,85820.0,85812.0,0.03633874]
[1742484590315,0.00075448,85822.0,85813.0,0.1219052]
[1742484590498,0.00075448,85822.0,85814.0,0.15591377]
[1742484590703,0.00075448,85822.0,85815.0,0.03866879]
[1742484590899,0.00075448,85822.0,85816.0,0.15591377]
[1742484591177,0.00075448,85822.0,85817.0,0.03866879]